bitfinex-derivatives/quotes_SOLF0:USTF0_20250923
["timestamp","ask_amount","ask_price","bid_price","bid_amount"]
[1758612875527,7.32659275,218.98,218.97,7.18]
[1758612876128,1.9081899,219.06,218.97,7.18]
[1758612876327,7.32270522,219.05,218.97,7.18]
[1758612876628,7.32270522,219.04,218.97,7.18]
[1758612876831,11.42870522,219.03,218.97,7.18]
[1758612877031,7.32270522,219.02,218.97,7.18]
[1758612877226,7.32270522,219.01,218.97,7.18]
[1758612877432,7.32270522,219.0,218.93,1.9081899]
[1758612877625,1.9081899,219.03,218.93,1.9081899]
[1758612877626,7.32270522,218.99,218.93,1.9081899]
[1758612877832,7.32270522,218.98,218.93,1.9081899]
[1758612878030,7.32270522,218.97,218.93,9.0881899]
[1758612878232,1.9081899,219.03,218.93,1.9081899]
[1758612878434,7.32599402,219.02,218.93,1.9081899]
[1758612878635,4.1068,219.0,218.93,1.9081899]
[1758612878835,7.32599402,218.99,218.93,1.9081899]
[1758612879130,1.9081899,219.06,218.97,9.0881899]
[1758612879434,7.32654919,219.05,218.97,9.0881899]
[1758612879637,7.32654919,219.04,218.97,9.0881899]
[1758612879839,7.32654919,219.03,218.97,13.1952899]
[1758612880131,7.32654919,219.02,218.98,7.18]
[1758612880327,7.32654919,219.01,218.97,6.0152899]
[1758612880532,1.9081899,219.06,218.97,6.0152899]
[1758612880533,6.99694771,219.09,218.98,7.18]
[1758612880737,6.99694771,219.09,219.0,1.9081899]
[1758612880738,11.43279135,219.08,219.0,1.9081899]
[1758612880929,7.32769135,219.07,219.0,9.0881899]
[1758612881128,7.32769135,219.06,219.0,9.0881899]
[1758612881328,7.32769135,219.05,219.0,1.9081899]
[1758612881530,7.32769135,219.04,219.0,1.9081899]
[1758612881731,3.9736747,219.03,219.01,7.18]
[1758612881938,1.9081899,219.09,219.01,7.18]
[1758612882235,7.32896241,219.08,219.01,7.18]
[1758612882435,7.32896241,219.07,219.01,7.18]
[1758612882635,7.32896241,219.07,219.0,1.9081899]
[1758612882636,7.32896241,219.06,219.0,1.9081899]
[1758612882838,7.32896241,219.05,219.0,1.9081899]
[1758612883038,7.32896241,219.04,219.0,1.9081899]
[1758612883335,6.0132899,219.09,219.01,7.18]
[1758612883535,7.27586448,219.08,219.01,7.18]
[1758612883736,6.0132899,219.09,219.01,7.18]
[1758612883737,7.27586448,219.07,219.01,7.18]
[1758612883939,7.27586448,219.06,219.01,7.18]
[1758612884136,7.27586448,219.05,219.01,7.18]
[1758612884337,6.0132899,219.09,219.01,7.18]
[1758612884632,7.27563494,219.08,219.01,7.18]
[1758612884840,7.27563494,219.07,219.01,7.18]
[1758612885040,7.27563494,219.06,219.01,7.18]
[1758612885334,7.27563494,219.05,219.01,7.18]
[1758612885539,4.1051,219.09,219.01,7.18]
[1758612885740,7.2756242,219.08,219.01,7.18]
[1758612886039,7.2756242,219.07,219.01,7.18]
[1758612886339,7.2756242,219.06,219.01,7.18]
[1758612886536,7.2756242,219.05,219.01,7.18]
[1758612886736,4.1051,219.09,219.01,7.18]
[1758612886938,11.38020169,219.08,219.01,7.18]
[1758612887139,7.27500169,219.07,219.01,7.18]
[1758612887334,7.27500169,219.06,219.01,7.18]
[1758612887538,7.27500169,219.05,219.01,7.18]
[1758612887751,4.1052,219.08,219.01,7.18]
[1758612887942,7.27496902,219.07,219.01,7.18]
[1758612888139,7.27496902,219.06,219.0,1.9081899]
[1758612888442,7.27496902,219.05,219.01,7.18]
[1758612888642,4.1052,219.08,219.01,7.18]
[1758612888837,7.2723562,219.07,219.01,7.18]
[1758612889038,7.2723562,219.06,218.98,1.9081899]
[1758612889239,7.2723562,219.05,218.98,1.9081899]
[1758612889543,6.0135899,219.07,218.98,1.9081899]
[1758612889743,7.27100256,219.06,218.98,1.9081899]
[1758612889944,7.27100256,219.05,218.98,1.9081899]
[1758612890141,6.0135899,219.07,218.98,1.9081899]
[1758612890342,7.27074834,219.06,218.98,1.9081899]
[1758612890542,7.27074834,219.05,218.98,1.9081899]
[1758612890743,6.0135899,219.07,218.98,1.9081899]
[1758612890943,7.27046768,219.06,218.98,1.9081899]
[1758612891138,7.27046768,219.05,218.98,1.9081899]
[1758612891343,1.9081899,219.09,218.99,7.18]
[1758612891533,7.27019561,219.08,219.02,1.9081899]
[1758612891738,1.9081899,219.15,219.05,7.18]
[1758612891942,7.27085592,219.14,219.06,1.9081899]
[1758612892141,7.27085592,219.13,219.06,1.9081899]
[1758612892447,7.27085592,219.12,219.06,1.9081899]
[1758612892647,7.27085592,219.11,219.07,7.18]
[1758612892942,7.27085592,219.1,219.06,1.9081899]
[1758612893247,7.27085592,219.09,219.07,7.18]
[1758612893542,4.1042,219.13,219.07,7.18]
[1758612893738,7.26797625,219.12,219.06,9.0881899]
[1758612893943,7.26797625,219.11,219.07,7.18]
[1758612894135,3.91701872,219.1,219.06,1.9081899]
[1758612894341,4.63001882,219.16,219.07,7.18]
[1758612894536,7.26602024,219.15,219.07,7.18]
[1758612894848,7.26602024,219.14,219.07,7.18]
[1758612895049,7.26602024,219.13,219.07,7.18]
[1758612895242,3.35010421,219.12,219.06,6.0134899]
[1758612895442,4.63001882,219.16,219.07,7.18]
[1758612895643,7.26373648,219.15,219.07,4.1051]
[1758612895946,3.34923701,219.14,219.08,7.18]
[1758612896144,4.1034,219.17,219.08,7.18]
[1758612896343,7.26246334,219.16,219.08,7.18]
[1758612896544,7.26246334,219.15,219.08,7.18]
[1758612896746,4.1034,219.17,219.08,7.18]
[1758612897056,7.26071854,219.16,219.08,7.18]
[1758612897351,7.26071854,219.15,219.08,7.18]
[1758612897558,4.1034,219.17,219.08,7.18]
[1758612897761,7.25735794,219.16,219.08,11.285]
[1758612897958,7.25735794,219.15,219.09,1.9081899]
[1758612898256,1.9081899,219.19,219.09,1.9081899]
[1758612898458,7.25490839,219.18,219.09,1.9081899]
[1758612898663,3.34492987,219.17,219.1,7.18]
[1758612898850,1.0,219.21,219.12,1.9081899]
[1758612899050,7.25546381,219.2,219.12,1.9081899]
[1758612899261,1.0,219.21,219.12,1.9081899]
[1758612899456,7.25117929,219.2,219.12,1.9081899]
[1758612899659,1.0,219.21,219.13,7.18]
[1758612899955,7.25119398,219.2,219.14,4.1039]
[1758612900161,7.25119398,219.2,219.13,7.18]
[1758612900162,3.34318014,219.19,219.13,7.18]
[1758612900361,1.0,219.21,219.15,6.0118899]
[1758612901350,1.0,219.21,219.15,9.3081899]
[1758612902365,1.0,219.21,219.18,1.9081899]
[1758612902749,1.0,219.21,219.2,4.1028]
[1758612902750,0.79444803,219.21,219.2,4.1028]
[1758612902954,0.79444803,219.21,219.2,11.5028]
[1758612904059,69.82355289,219.33,219.2,11.9628]
[1758612904258,69.82355289,219.33,219.23,1.9081899]
[1758612904259,7.23524262,219.32,219.23,1.9081899]
[1758612904458,3.89960719,219.31,219.23,1.9081899]
[1758612904652,4.1008,219.31,219.21,7.4]
[1758612904857,6.0089899,219.31,219.21,7.4]
[1758612906059,6.0089899,219.31,219.21,11.5026]
[1758612906461,64.92896746,219.33,219.24,7.4]
[1758612907766,1.9081899,219.34,219.25,4.1018]
[1758612907966,3.88950912,219.33,219.25,4.1018]
[1758612908264,1.9081899,219.34,219.24,7.4]
[1758612908467,3.88741773,219.33,219.24,11.502]
[1758612908768,1.9081899,219.34,219.24,11.502]
[1758612908955,3.88741964,219.33,219.25,1.9081899]
[1758612909155,1.9081899,219.34,219.24,13.4101899]
[1758612909360,3.88537805,219.33,219.24,11.502]
[1758612909663,3.88537805,219.32,219.26,4.1016]
[1758612909867,1.9081899,219.34,219.26,4.1016]
[1758612910069,3.88829586,219.33,219.26,4.1016]
[1758612910267,4.099,219.41,219.29,7.4]
[1758612910579,1.9081899,219.38,219.29,7.4]
[1758612910769,3.8853817,219.37,219.29,7.4]
[1758612910957,3.8853817,219.36,219.29,7.4]
[1758612911156,1.9081899,219.38,219.29,7.4]
[1758612911467,3.88214782,219.37,219.29,7.4]
[1758612911666,3.88214782,219.36,219.3,4.1009]
[1758612911867,1.9081899,219.38,219.3,4.1009]
[1758612912165,3.88228881,219.37,219.32,4.1005]
[1758612912356,1.9081899,219.4,219.33,7.4]
[1758612912561,3.88027001,219.39,219.33,7.4]
[1758612912762,1.9081899,219.4,219.33,7.4]
[1758612912962,3.88027825,219.39,219.33,7.4]
[1758612913162,1.9081899,219.4,219.33,7.4]
[1758612913363,3.95139239,219.39,219.3,1.9081899]
[1758612913563,3.95139239,219.38,219.3,9.3081899]
[1758612913765,6.0072899,219.4,219.3,9.3081899]
[1758612913971,3.95145496,219.39,219.3,11.5009]
[1758612914268,3.95145496,219.38,219.3,11.5009]
[1758612914460,1.9081899,219.41,219.33,7.4]
[1758612914663,3.94870258,219.4,219.33,7.4]
[1758612914966,3.94870258,219.39,219.33,7.4]
[1758612915167,3.94870258,219.38,219.32,7.4]
[1758612915361,3.94870258,219.37,219.33,7.4]
[1758612915572,6.0068899,219.43,219.31,7.4]
[1758612915766,3.94632374,219.42,219.34,7.4]
[1758612915972,3.94632374,219.41,219.36,1.9081899]
[1758612916263,3.94632374,219.4,219.37,7.4]
[1758612916467,3.94632374,219.39,219.37,7.4]
[1758612916674,1.9081899,219.48,219.37,7.4]
[1758612916862,3.94213319,219.46,219.37,7.4]
[1758612917066,3.94213319,219.45,219.37,7.4]
[1758612917272,3.94213319,219.44,219.37,7.4]
[1758612917470,3.94213319,219.43,219.4,4.099]
[1758612917669,3.94213319,219.42,219.41,7.48]
[1758612920075,6.0057899,219.48,219.41,7.48]
[1758612920277,3.93631562,219.47,219.41,7.48]
[1758612920477,8.03431562,219.46,219.41,7.48]
[1758612920675,3.93631562,219.45,219.41,7.48]
[1758612921874,3.93631562,219.45,219.37,9.3881899]
[1758612922075,1.9081899,219.42,219.32,1.9081899]
[1758612922279,3.93631562,219.41,219.33,7.48]
[1758612922479,1.9081899,219.39,219.33,7.48]
[1758612922775,3.93947725,219.38,219.33,7.48]
[1758612922979,3.93947725,219.37,219.33,7.48]
[1758612923281,3.93947725,219.36,219.29,7.48]
[1758612923482,1.9081899,219.4,219.29,7.48]
[1758612923685,3.94079237,219.39,219.32,7.48]
[1758612923979,5.84898227,219.38,219.32,7.48]
[1758612924179,3.94079237,219.37,219.32,7.48]
[1758612924381,3.94079237,219.36,219.32,7.48]
[1758612924679,1.9081899,219.38,219.32,7.48]
[1758612924680,3.94079237,219.35,219.32,7.48]
[1758612924881,3.94079237,219.34,219.32,7.48]
[1758612925175,1.9081899,219.38,219.32,7.48]
[1758612925373,3.94259052,219.37,219.32,7.48]
[1758612925576,3.94259052,219.36,219.32,7.48]
[1758612925771,3.94259052,219.36,219.28,7.48]
[1758612926178,3.94259052,219.36,219.28,9.3881899]
[1758612926777,4.1001,219.35,219.28,9.3881899]
[1758612926987,3.94259052,219.36,219.28,7.48]
[1758612926988,3.94259052,219.34,219.28,7.48]
[1758612927184,3.94259052,219.33,219.27,7.48]
[1758612929475,3.94682277,219.37,219.3,7.48]
[1758612929685,3.94682277,219.36,219.3,7.48]
[1758612929985,5.85501267,219.35,219.29,7.48]
[1758612930179,3.94682277,219.34,219.28,11.5813]
[1758612930379,3.94682277,219.34,219.28,13.4894899]
[1758612930580,3.94682277,219.33,219.28,6.0094899]
[1758612930779,3.94682277,219.32,219.29,7.53]
[1758612930981,1.9081899,219.39,219.29,7.53]
[1758612931288,7.25440587,219.38,219.29,7.53]
[1758612931488,3.93908009,219.37,219.29,7.53]
[1758612931787,3.93908009,219.36,219.29,7.53]
[1758612931986,3.93908009,219.35,219.29,7.53]
[1758612932182,3.93908009,219.34,219.29,7.53]
[1758612932382,3.93908009,219.33,219.29,7.53]
[1758612932583,3.93908009,219.32,219.27,7.53]
[1758612932883,3.93908009,219.31,219.24,7.53]
[1758612933092,3.93908009,219.3,219.24,7.53]
[1758612933281,4.1,219.35,219.24,7.53]
[1758612933476,3.94612633,219.34,219.28,7.53]
[1758612933684,3.94612633,219.34,219.23,66.78547452]
[1758612933685,3.94612633,219.33,219.26,2.97237452]
[1758612933888,3.94612633,219.32,219.27,7.53]
[1758612934080,3.94612633,219.31,219.26,2.97237452]
[1758612934280,3.948983,219.3,219.26,2.97237452]
[1758612934480,4.0994,219.39,219.27,7.53]
[1758612934681,7.27258816,219.38,219.27,7.53]
[1758612934989,7.27258816,219.37,219.3,7.53]
[1758612935288,7.27258816,219.36,219.3,7.53]
[1758612935587,3.94898341,219.35,219.27,7.53]
[1758612935781,3.94898341,219.34,219.27,7.53]
[1758612935977,3.94898341,219.33,219.27,7.53]
[1758612936182,3.94898341,219.32,219.26,2.97237452]
[1758612936382,3.94898341,219.31,219.26,2.97237452]
[1758612936579,3.94898341,219.3,219.27,7.53]
[1758612936782,3.94898341,219.29,219.26,2.97237452]
[1758612936984,4.0998,219.37,219.27,7.53]
[1758612937187,7.2847795,219.36,219.27,7.53]
[1758612937389,3.95564049,219.35,219.27,7.53]
[1758612937591,5.08875781,219.44,219.28,63.7987]
[1758612937592,3.95564049,219.34,219.28,63.7987]
[1758612937786,3.95564049,219.33,219.29,7.53]
[1758612937986,3.95564049,219.32,219.29,7.53]
[1758612938282,4.0989,219.41,219.3,11.631]
[1758612938588,7.0776595,219.4,219.3,7.53]
[1758612938789,7.0776595,219.39,219.31,4.1006]
[1758612939091,7.0776595,219.38,219.31,4.1006]
[1758612939284,4.0989,219.41,219.31,4.1006]
[1758612939285,7.08041289,219.37,219.31,4.1006]
[1758612939479,3.33207556,219.36,219.31,4.1006]
[1758612939680,9.18725781,219.44,219.32,7.53]
[1758612939881,7.08290738,219.43,219.32,7.53]
[1758612940185,7.08290738,219.42,219.32,7.53]
[1758612940386,7.08290738,219.41,219.32,7.53]
[1758612940682,7.08290738,219.4,219.32,7.53]
[1758612940888,7.08290738,219.39,219.34,4.1001]
[1758612941089,3.33460522,219.38,219.34,4.1001]
[1758612941286,4.0988,219.42,219.35,7.53]
[1758612941588,7.09255641,219.41,219.35,7.53]
[1758612941784,7.09255641,219.4,219.35,7.53]
[1758612941980,7.09255641,219.39,219.35,7.53]
[1758612942191,4.0988,219.42,219.35,7.53]
[1758612942192,7.09255641,219.38,219.35,7.53]
[1758612942490,68.83715781,219.46,219.35,7.53]
[1758612942491,7.09579474,219.37,219.35,7.53]
[1758612942686,3.34213263,219.36,219.35,7.53]
[1758612943491,3.34213263,219.36,219.29,4.1012]
[1758612943791,3.34213263,219.35,219.29,4.1012]
[1758612943992,3.34213263,219.34,219.29,11.6312]
[1758612944187,3.34213263,219.33,219.29,11.6312]
[1758612944489,5.08875781,219.4,219.29,11.6312]
[1758612944690,6.97504235,219.39,219.29,11.6312]
[1758612944885,11.07454235,219.38,219.29,11.6312]
[1758612945092,6.97504235,219.37,219.29,7.53]
[1758612945390,6.97504235,219.36,219.29,7.53]
[1758612945589,2.97237452,219.39,219.29,7.53]
[1758612945590,3.34882233,219.35,219.29,7.53]
[1758612945785,3.34882233,219.34,219.25,7.53]
[1758612945991,3.34882233,219.33,219.25,7.53]
[1758612946184,3.34882233,219.32,219.25,7.53]
[1758612946385,3.34882233,219.31,219.25,7.53]
[1758612946594,3.34882233,219.3,219.23,7.53]
[1758612946788,4.1003,219.34,219.25,4.1017]
[1758612946990,3.35072293,219.33,219.26,7.53]
[1758612947191,3.35072293,219.32,219.26,7.53]
[1758612947392,3.35072293,219.31,219.25,4.1017]
[1758612947595,3.35072293,219.3,219.25,4.1017]
[1758612947790,3.35072293,219.29,219.25,4.1017]
[1758612947988,4.1003,219.34,219.26,7.53]
[1758612948193,3.35027866,219.33,219.26,7.53]
[1758612948499,3.35027866,219.32,219.23,4.1023]
[1758612948693,3.35027866,219.31,219.22,7.53]
[1758612948995,3.35027866,219.3,219.22,7.53]
[1758612949198,3.35027866,219.29,219.22,7.53]
[1758612949489,3.35027866,219.28,219.22,7.53]
[1758612949684,4.1008,219.32,219.22,11.6323]
[1758612949889,3.35212023,219.31,219.22,11.6323]
[1758612950197,3.35212023,219.3,219.22,11.6323]
[1758612950493,3.35212023,219.29,219.22,11.6323]
[1758612950794,3.35212023,219.28,219.22,11.6323]
[1758612950996,4.1008,219.32,219.22,11.6323]
[1758612951197,3.35584155,219.31,219.22,11.6323]
[1758612951390,3.35584155,219.3,219.22,11.6323]
[1758612951592,3.35584155,219.29,219.22,11.6323]
[1758612951788,3.35584155,219.28,219.24,63.8109]
[1758612952094,5.08875781,219.38,219.25,7.53]
[1758612952397,14.06373441,219.37,219.25,7.53]
[1758612952596,6.99165989,219.36,219.25,7.53]
[1758612952900,4.1005,219.33,219.25,11.6319]
[1758612953094,3.35675156,219.32,219.25,11.6319]
[1758612953394,3.35675156,219.32,219.25,7.53]
[1758612953897,3.35675156,219.32,219.21,7.53]
[1758612954091,6.9934319,219.31,219.21,7.53]
[1758612954396,3.35675156,219.3,219.21,7.53]
[1758612954595,3.35675156,219.29,219.21,7.53]
[1758612954896,3.35675156,219.28,219.21,7.53]
[1758612955503,4.1015,219.27,219.21,7.53]
[1758612955804,3.35675156,219.26,219.21,7.53]
[1758612956694,3.35675156,219.26,219.16,7.53]
[1758612956897,3.35675156,219.25,219.16,7.53]
[1758612957104,2.97237452,219.33,219.16,7.53]
[1758612957289,6.9940166,219.32,219.16,7.53]
[1758612957492,6.9940166,219.31,219.16,7.53]
[1758612957692,3.35737236,219.3,219.19,7.53]
[1758612957892,2.97237452,219.33,219.2,7.53]
[1758612957893,3.35737236,219.29,219.2,7.53]
[1758612958096,3.35737236,219.28,219.2,7.53]
[1758612958291,4.1006,219.32,219.22,4.1025]
[1758612958492,3.35621955,219.31,219.22,4.1025]
[1758612958792,3.35621955,219.3,219.2,7.53]
[1758612959398,3.35621955,219.29,219.2,7.53]
[1758612959598,4.1016,219.27,219.16,4.1034]
[1758612959795,3.35621955,219.26,219.16,4.1034]
[1758612960000,6.32859407,219.25,219.15,7.53]
[1758612960203,3.35621955,219.24,219.15,7.53]
[1758612960408,3.35621955,219.23,219.15,7.53]
[1758612960706,7.07427452,219.25,219.15,7.53]
[1758612960903,3.35616448,219.24,219.15,7.53]
[1758612961102,3.35616448,219.23,219.15,7.53]
[1758612961308,4.1021,219.24,219.15,11.6338]
[1758612961605,3.35610057,219.23,219.15,11.6338]
[1758612961801,4.1021,219.24,219.15,11.6338]
[1758612961999,3.35448937,219.23,219.15,7.53]
[1758612962208,4.1021,219.24,219.15,7.53]
[1758612962403,3.35303896,219.23,219.15,7.53]
[1758612962599,4.1021,219.24,219.15,7.53]
[1758612962905,4.1016,219.27,219.15,7.53]
[1758612963110,3.35319309,219.26,219.15,7.53]
[1758612963315,3.35319309,219.25,219.15,7.53]
[1758612963503,3.35319309,219.24,219.15,7.53]
[1758612963704,4.1023,219.23,219.15,7.53]
[1758612964808,4.1027,219.21,219.11,4.1044]
[1758612966216,4.1027,219.21,219.12,7.21]
[1758612966413,7.07467452,219.24,219.12,7.21]
[1758612966616,3.34948843,219.23,219.13,4.1041]
[1758612966916,3.34948843,219.22,219.13,4.1041]
[1758612967119,7.07467452,219.24,219.13,4.1041]
[1758612967309,3.34952245,219.23,219.13,4.1041]
[1758612967513,7.45328671,219.22,219.12,7.21]
[1758612967716,2.97237452,219.24,219.12,7.21]
[1758612968016,7.44598004,219.23,219.12,11.3143]
[1758612968215,4.1024,219.23,219.12,11.3143]
[1758612970519,2.97237452,219.24,219.12,11.3143]
[1758612970721,2.97237452,219.2,219.12,7.21]
[1758612971615,4.1034,219.18,219.08,11.3149]
[1758612971818,63.8259,219.19,219.08,7.21]
[1758612972019,2.97237452,219.16,219.08,7.21]
[1758612972218,4.1044,219.12,219.08,7.21]
[1758612972918,4.1039,219.15,219.08,7.21]
[1758612976332,2.97237452,219.16,219.08,7.21]
[1758612977325,7.07617452,219.16,219.08,7.21]
[1758612977525,2.97237452,219.16,219.08,7.21]
[1758612978231,2.97237452,219.22,219.08,7.21]
[1758612978431,3.33294206,219.21,219.08,7.21]
[1758612978732,3.33294206,219.2,219.08,7.21]
[1758612978932,3.33294206,219.19,219.08,7.21]
[1758612979133,3.33294206,219.18,219.08,7.21]
[1758612979332,2.97237452,219.22,219.08,7.21]
[1758612979528,3.33220792,219.21,219.08,7.21]
[1758612979729,3.33220792,219.2,219.08,7.21]
[1758612979925,3.33220792,219.19,219.11,7.12]
[1758612980234,4.103,219.2,219.11,7.12]
[1758612980428,3.33187106,219.19,219.11,7.12]
[1758612980630,4.103,219.2,219.11,7.12]
[1758612980824,3.33187106,219.19,219.11,7.12]
[1758612981029,4.103,219.2,219.11,7.12]
[1758612981232,3.33187106,219.19,219.11,7.12]
[1758612981434,4.103,219.2,219.11,7.12]
[1758612981639,3.33164718,219.19,219.11,7.12]
[1758612981930,4.103,219.2,219.11,7.12]
[1758612982133,2.97237452,219.25,219.12,7.12]
[1758612982334,63.797,219.29,219.09,63.8538]
[1758612982335,3.33137018,219.24,219.14,7.12]
[1758612982635,2.97237452,219.31,219.14,7.12]
[1758612982833,3.3303224,219.3,219.14,7.12]
[1758612983131,3.3303224,219.29,219.14,7.12]
[1758612983433,3.3303224,219.29,219.13,66.81487452]
[1758612983434,4.1017,219.27,219.18,11.223]
[1758612983636,3.3303224,219.26,219.18,7.12]
[1758612984029,4.1013,219.29,219.18,7.12]
[1758612984234,3.33132817,219.28,219.18,7.12]
[1758612984436,3.33132817,219.27,219.18,7.12]
[1758612984634,3.33132817,219.26,219.18,11.2232]
[1758612984838,4.1013,219.29,219.18,11.2232]
[1758612985041,3.33225087,219.28,219.18,11.2232]
[1758612985336,3.33225087,219.27,219.18,11.2232]
[1758612985535,3.33225087,219.26,219.18,11.2232]
[1758612985732,4.1015,219.28,219.18,11.2232]
[1758612985937,3.33369282,219.27,219.18,11.2232]
[1758612986239,3.33369282,219.26,219.18,11.2232]
[1758612986431,3.33369282,219.25,219.18,11.2232]
[1758612986633,4.1015,219.28,219.18,11.2232]
[1758612986938,3.3353753,219.27,219.18,7.12]
[1758612987137,3.3353753,219.26,219.18,7.12]
[1758612987443,4.1021,219.24,219.18,7.12]
[1758612990236,4.1021,219.24,219.14,4.104]
[1758612990237,3.3416958,219.23,219.15,7.12]
[1758612990433,4.1021,219.24,219.15,7.12]
[1758612990434,72.44575883,219.33,219.16,7.12]
[1758612990735,3.34165847,219.31,219.18,7.35]
[1758612990933,4.1013,219.29,219.21,7.35]
[1758612991132,3.34165847,219.28,219.21,7.35]
[1758612991341,3.57170102,219.33,219.21,7.35]
[1758612991539,3.34176163,219.32,219.21,7.35]
[1758612991736,3.34176163,219.31,219.21,7.35]
[1758612992037,3.34176163,219.3,219.21,7.35]
[1758612992237,3.34176163,219.29,219.21,7.35]
[1758612992435,3.34176163,219.28,219.21,7.35]
[1758612992638,17.33854768,219.33,219.21,7.35]
[1758612992838,3.34287389,219.32,219.21,7.35]
[1758612993041,3.34287389,219.31,219.23,7.35]
[1758612993232,2.97237452,219.38,219.23,7.35]
[1758612993436,3.34220061,219.37,219.23,7.35]
[1758612993637,3.34220061,219.36,219.24,2.97237452]
[1758612993944,3.34220061,219.35,219.26,7.35]
[1758612994443,3.34220061,219.35,219.29,7.35]
[1758612994743,4.0994,219.39,219.3,1.90172649]
[1758612994938,3.34178473,219.38,219.3,1.90172649]
[1758612995136,3.34178473,219.37,219.3,1.90172649]
[1758612995338,3.34178473,219.36,219.3,1.90172649]
[1758612995538,3.34178473,219.35,219.31,7.35]
[1758612995737,4.0994,219.39,219.31,7.35]
[1758612995940,4.0997,219.37,219.31,7.35]
[1758612996141,3.34138387,219.36,219.27,7.35]
[1758612996340,3.34138387,219.35,219.27,7.35]
[1758612996544,3.34138387,219.34,219.27,7.35]
[1758612996738,4.1001,219.35,219.27,7.35]
[1758612996936,3.34105991,219.34,219.27,7.35]
[1758612997137,4.1001,219.35,219.27,7.35]
[1758612997342,3.34177995,219.34,219.27,7.35]
[1758612997545,4.1001,219.35,219.27,7.35]
[1758612997740,4.1004,219.33,219.27,7.35]
[1758612998244,3.33276484,219.32,219.27,7.35]
[1758612998436,4.1004,219.33,219.27,7.35]
[1758612998637,3.33328351,219.32,219.27,7.35]
[1758612998837,4.1004,219.33,219.27,7.35]
[1758612999145,3.33328351,219.32,219.27,7.35]
[1758612999336,4.1004,219.33,219.27,7.35]
[1758612999543,3.33298085,219.32,219.24,7.35]
[1758612999738,3.33305085,219.31,219.24,7.35]
[1758612999939,1.90172649,219.32,219.24,7.35]
[1758613000137,7.43402363,219.31,219.24,7.35]
[1758613000339,4.1008,219.31,219.24,7.35]
[1758613000642,1.90172649,219.32,219.24,7.35]
[1758613000840,3.33325186,219.31,219.24,7.35]
[1758613001143,3.3332131,219.3,219.24,7.35]
[1758613001339,1.90172649,219.32,219.24,7.35]
[1758613001546,3.3333513,219.31,219.24,7.35]
[1758613001736,3.3333513,219.3,219.24,7.35]
[1758613001936,1.90172649,219.29,219.18,7.35]
[1758613002140,1.90172649,219.26,219.18,7.35]
[1758613002540,3.33440432,219.25,219.18,7.35]
[1758613002741,1.90172649,219.23,219.13,7.35]
[1758613003034,1.90172649,219.2,219.13,7.35]
[1758613004042,1.90172649,219.17,219.13,7.35]
[1758613005042,1.90172649,219.17,219.09,1.90172649]
[1758613005346,2.90172649,219.17,219.1,7.35]
[1758613006446,1.0,219.17,219.1,7.35]
[1758613007846,1.0,219.17,219.1,11.4547]
[1758613008044,1.0,219.17,219.11,7.35]
[1758613008347,1.0,219.17,219.12,4.1042]
[1758613008748,1.0,219.17,219.1,7.35]
[1758613010748,1.0,219.17,219.1,11.4547]
[1758613011250,1.0,219.17,219.11,7.35]
[1758613018257,4.1038,219.15,219.07,7.35]
[1758613020244,1.90172649,219.13,219.07,7.35]
[1758613020449,1.90172649,219.15,219.08,7.35]
[1758613020647,1.90172649,219.16,219.08,7.35]
[1758613021851,6.00542649,219.16,219.08,7.35]
[1758613022055,1.0,219.17,219.1,7.44]
[1758613022350,1.0,219.17,219.1,9.34172649]
[1758613022555,1.0,219.17,219.1,7.44]
[1758613024453,1.0,219.17,219.11,4.1045]
[1758613025052,1.0,219.17,219.13,4.1042]
[1758613025251,1.0,219.17,219.14,7.44]
[1758613025448,1.0,219.17,219.13,4.1042]